fUSD/lending_fUSD_20240214
["ID","MTS","AMOUNT","RATE_DAILY","PERIOD"]
[314019635,1707923596084,-876.4800771,0.00043013,7]
[314019636,1707923596093,-907.74488287,0.00043013,7]
[314019637,1707923596102,-1864.03406202,0.00043013,7]
[314019638,1707923596111,-2233.63669223,0.00043013,7]
[314019639,1707923596120,-22229.4135,0.00043013,7]
[314019640,1707923596129,-1407.9608199,0.00043013,7]
[314019641,1707923596139,-2807.86362326,0.00043013,7]
[314019642,1707923596148,-749.62241569,0.00043013,7]
[314019643,1707923596158,-770.56586011,0.00043013,7]
[314019644,1707923596167,-4410.00402766,0.00043013,7]
[314019645,1707923596176,-1583.04476211,0.00043013,7]
[314019646,1707923596186,-940.66914539,0.00043013,7]
[314019647,1707923596195,-778.36323232,0.00043013,7]
[314019648,1707923596205,-820.094046,0.00043013,7]
[314019649,1707923596214,-501.61320551,0.00043013,7]
[314019650,1707923596227,-188.825359,0.00043014,14]
[314019651,1707923596236,-358.85958455,0.0004302,30]
[314019652,1707923596245,-229.23,0.00043021,2]
[314019653,1707923596254,-2000.0,0.00043023,30]
[314019654,1707923596264,-2000.0,0.00043023,30]
[314019655,1707923596274,-2000.0,0.00043023,30]
[314019656,1707923596284,-2000.0,0.00043023,30]
[314019657,1707923596294,-2000.0,0.00043023,30]
[314019658,1707923596304,-2000.0,0.00043023,30]
[314019659,1707923596313,-2000.0,0.00043023,30]
[314019660,1707923596323,-2000.0,0.00043023,30]
[314019661,1707923596332,-2000.0,0.00043023,30]
[314019662,1707923596341,-2000.0,0.00043023,30]
[314019663,1707923596351,-2000.0,0.00043023,30]
[314019664,1707923596361,-2000.0,0.00043023,30]
[314019665,1707923596370,-2000.0,0.00043023,30]
[314019666,1707923596379,-2000.0,0.00043023,30]
[314019667,1707923596388,-2000.0,0.00043023,30]
[314019668,1707923596397,-2000.0,0.00043023,30]
[314019669,1707923596406,-2000.0,0.00043023,30]
[314019670,1707923596416,-2000.0,0.00043023,30]
[314019671,1707923596425,-2000.0,0.00043023,30]
[314019672,1707923596434,-2000.0,0.00043023,30]
[314019673,1707923596443,-2000.0,0.00043023,30]
[314019674,1707923596452,-2000.0,0.00043023,30]
[314019675,1707923596461,-2000.0,0.00043023,30]
[314019676,1707923596474,-2000.0,0.00043023,30]
[314019677,1707923596483,-2000.0,0.00043023,30]
[314019678,1707923596492,-2000.0,0.00043023,30]
[314019679,1707923596501,-2000.0,0.00043023,30]
[314019680,1707923596511,-2000.0,0.00043023,30]
[314019681,1707923596520,-2000.0,0.00043023,30]
[314019682,1707923596530,-2000.0,0.00043023,30]
[314019683,1707923596539,-2000.0,0.00043023,30]
[314019684,1707923596548,-2000.0,0.00043023,30]
[314019685,1707923596558,-2000.0,0.00043023,30]
[314019686,1707923596567,-2000.0,0.00043023,30]
[314019687,1707923596576,-2000.0,0.00043023,30]
[314019688,1707923596585,-2000.0,0.00043023,30]
[314019689,1707923596595,-2000.0,0.00043023,30]
[314019690,1707923596604,-2000.0,0.00043023,30]
[314019691,1707923596614,-2000.0,0.00043023,30]
[314019692,1707923596623,-2000.0,0.00043023,30]
[314019693,1707923596633,-2000.0,0.00043023,30]
[314019694,1707923596642,-2000.0,0.00043023,30]
[314019695,1707923596652,-2000.0,0.00043023,30]
[314019696,1707923596662,-2000.0,0.00043023,30]
[314019697,1707923596671,-2000.0,0.00043023,30]
[314019698,1707923596681,-2000.0,0.00043023,30]
[314019699,1707923596690,-2000.0,0.00043023,30]
[314019700,1707923596699,-2000.0,0.00043023,30]
[314019701,1707923596708,-2000.0,0.00043023,30]
[314019702,1707923596719,-2000.0,0.00043023,30]
[314019703,1707923596729,-2000.0,0.00043023,30]
[314019704,1707923596739,-2000.0,0.00043023,30]
[314019705,1707923596748,-2000.0,0.00043023,30]
[314019706,1707923596758,-2000.0,0.00043023,30]
[314019707,1707923596768,-2000.0,0.00043023,30]
[314019708,1707923596777,-2000.0,0.00043023,30]
[314019709,1707923596787,-2000.0,0.00043023,30]
[314019710,1707923596797,-2000.0,0.00043023,30]
[314019711,1707923596806,-2000.0,0.00043023,30]
[314019712,1707923596815,-2000.0,0.00043023,30]
[314019713,1707923596825,-2000.0,0.00043023,30]
[314019714,1707923596834,-2000.0,0.00043023,30]
[314019715,1707923596843,-2000.0,0.00043023,30]
[314019716,1707923596853,-2000.0,0.00043023,30]
[314019717,1707923596862,-2000.0,0.00043023,30]
[314019718,1707923596871,-2000.0,0.00043023,30]
[314019719,1707923596880,-2000.0,0.00043023,30]
[314019720,1707923596890,-2000.0,0.00043023,30]
[314019721,1707923596899,-2000.0,0.00043023,30]
[314019722,1707923596909,-2000.0,0.00043023,30]
[314019723,1707923596919,-2000.0,0.00043023,30]
[314019724,1707923596929,-2000.0,0.00043023,30]
[314019725,1707923596938,-2000.0,0.00043023,30]
[314019726,1707923596948,-2000.0,0.00043023,30]
[314019727,1707923596957,-2000.0,0.00043023,30]
[314019728,1707923596967,-2000.0,0.00043023,30]
[314019729,1707923596980,-2000.0,0.00043023,30]
[314019730,1707923596989,-2000.0,0.00043023,30]
[314019731,1707923596999,-2000.0,0.00043023,30]
[314019732,1707923597011,-2000.0,0.00043023,30]
[314019733,1707923597020,-2000.0,0.00043023,30]
[314019734,1707923597030,-2000.0,0.00043023,30]
[314019735,1707923597039,-2000.0,0.00043023,30]
[314019736,1707923597049,-2000.0,0.00043023,30]
[314019737,1707923597058,-2000.0,0.00043023,30]
[314019738,1707923597068,-2000.0,0.00043023,30]
[314019739,1707923597078,-2000.0,0.00043023,30]
[314019740,1707923597087,-2000.0,0.00043023,30]
[314019741,1707923597097,-2000.0,0.00043023,30]
[314019742,1707923597106,-2000.0,0.00043023,30]
[314019743,1707923597116,-2000.0,0.00043023,30]
[314019744,1707923597126,-2000.0,0.00043023,30]
[314019745,1707923597136,-2000.0,0.00043023,30]
[314019746,1707923597145,-358.85958455,0.00043027,30]
[314019747,1707923597155,-657.90689477,0.00043038,30]
[314019748,1707923597165,-153.22793095,0.0004304,30]
[314019749,1707923597175,-154.68938908,0.0004304,30]
[314019750,1707923597185,-281.10374966,0.00043042,30]
[314019751,1707923597195,-239.29468169,0.00043062,30]
[314019752,1707923597205,-235.13880492,0.00043065,30]
[314019753,1707923597215,-657.90689477,0.00043067,30]
[314019754,1707923597226,-454.70967746,0.00043072,30]
[314019755,1707923597236,-454.70967746,0.00043072,30]
[314019756,1707923597245,-358.85958455,0.00043073,30]
[314019757,1707923597255,-324.45736873,0.00043075,30]
[314019758,1707923597264,-46208.55883356,0.00043079,30]
[314019759,1707923597274,-454.70967746,0.00043081,30]
[314019760,1707923597284,-519.40179887,0.00043081,30]
[314019761,1707923597294,-1109.66131359,0.00043084,30]
[314019762,1707923597304,-364.68013129,0.00043084,30]
[314019763,1707923597313,-8063.25004566,0.00043087,30]
[314019764,1707923597323,-519.40179887,0.0004309,30]
[314019765,1707923597332,-8063.25004566,0.00043091,30]
[314019766,1707923597342,-181.69612649,0.00043096,30]
[314019767,1707923597352,-158.45579499,0.00043097,30]
[314019768,1707923597362,-239.29468169,0.000431,30]
[314019769,1707923597371,-181.69612649,0.00043104,30]
[314019770,1707923597381,-158.45579499,0.00043107,30]
[314019771,1707923597390,-150.0,0.00043109,4]
[314019772,1707923597400,-181.69612649,0.0004311,30]
[314019773,1707923597409,-46208.55883356,0.00043111,30]
[314019774,1707923597418,-155.97046677,0.00043112,30]
[314019775,1707923597428,-532.06936974,0.00043113,30]
[314019776,1707923597437,-157.0252244,0.00043113,30]
[314019777,1707923597447,-1108.45372296,0.00043114,30]
[314019778,1707923597457,-154.41789369,0.00043117,30]
[314019779,1707923597466,-155.97046677,0.00043119,30]
[314019780,1707923597479,-324.45736873,0.00043122,30]
[314019781,1707923597489,-1108.45372296,0.00043124,30]
[314019782,1707923597499,-154.65466196,0.00043125,30]
[314019783,1707923597508,-235.13880492,0.0004313,30]
[314019784,1707923597518,-532.06936974,0.0004313,30]
[314019785,1707923597528,-251.0,0.00043131,28]
[314019786,1707923597538,-46208.55883356,0.00043133,30]
[314019787,1707923597548,-172.15221479,0.00043133,30]
[314019788,1707923597557,-7439.90005544,0.00043139,30]
[314019789,1707923597567,-364.68013129,0.00043144,30]
[314019790,1707923597577,-354.81402348,0.00043144,30]
[314019791,1707923597587,-1109.66131359,0.00043144,30]
[314019792,1707923597597,-532.06936974,0.00043148,30]
[314019793,1707923597607,-151.0214,0.00043148,22]
[314019794,1707923597617,-408.08,0.00043149,2]
[314019795,1707923597627,-1131.88873246,0.00043149,30]
[314019796,1707923597637,-324.45736873,0.00043149,30]
[314019797,1707923597646,-8063.25004566,0.00043155,30]
[314019798,1707923597656,-1108.45372296,0.00043159,30]
[314019799,1707923597665,-150.0,0.00043161,30]
[314019800,1707923597675,-364.68013129,0.00043163,30]
[314019801,1707923597686,-519.40179887,0.00043168,30]
[314019802,1707923597696,-1109.66131359,0.00043173,30]
[314019803,1707923597706,-1131.88873246,0.00043178,30]
[314019804,1707923597716,-7439.90005544,0.00043178,30]
[314019805,1707923597728,-1131.88873246,0.00043185,30]
[314019806,1707923597738,-155.97046677,0.00043189,30]
[314019807,1707923597749,-354.81402348,0.00043194,30]
[314019808,1707923597758,-7439.90005544,0.00043196,30]
[314019809,1707923597768,-158.45579499,0.00043199,30]
[314019810,1707923597778,-673.0,0.000432,30]
[314019811,1707923597788,-100000.0,0.000432,5]
[314019812,1707923597798,-12783.04560837,0.000432,120]
[314019813,1707923597808,-500.0,0.00043239,2]
[314019814,1707923597818,-773.7594,0.0004326,20]
[314019815,1707923597827,-235.13880492,0.00043274,30]
[314019816,1707923597837,-235.13880492,0.00043293,30]
[314019817,1707923597847,-150.0,0.00043297,4]
[314019818,1707923597857,-1532.39478887,0.00043298,7]
[314019819,1707923597866,-631.18465979,0.00043298,7]
[314019820,1707923597876,-996.19465956,0.00043298,7]
[314019821,1707923597886,-1222.41591722,0.00043298,7]
[314019822,1707923597896,-1120.06673539,0.00043298,7]
[314019823,1707923597907,-354.81402348,0.00043298,30]
[314019824,1707923597917,-398.7171322,0.000433,30]
[314019825,1707923597927,-10061.8569266,0.000433,60]
[314019826,1707923597937,-1000.0,0.000433,2]
[314019827,1707923597947,-1482.30791473,0.000433,30]
[314019828,1707923597957,-354.81402348,0.00043302,30]
[314019829,1707923597968,-235.13880492,0.00043313,30]
[314019830,1707923597982,-154.41789369,0.00043314,30]
[314019831,1707923597993,-160.50924634,0.00043319,30]
[314019832,1707923598007,-154.03006511,0.00043322,30]
[314019833,1707923598017,-239.29468169,0.00043368,30]
[314019834,1707923598027,-239.29468169,0.00043381,30]
[314019835,1707923598037,-153.22793095,0.00043389,30]
[314019836,1707923598049,-657.90689477,0.0004339,30]
[314019837,1707923598059,-154.68938908,0.00043397,30]
[314019838,1707923598069,-870.92269048,0.000434,120]
[314019839,1707923598080,-10347.22439228,0.000434,30]
[314019840,1707923598091,-354.81402348,0.00043401,30]
[314019841,1707923598101,-154.6893891,0.00043408,30]
[314019842,1707923598111,-354.81402348,0.0004342,30]
[314019843,1707923598120,-3547.57525411,0.00043426,5]
[314019844,1707923598130,-150.9,0.00043444,2]
[314019845,1707923598140,-151.0214,0.00043448,22]
[314019846,1707923598150,-160.50924637,0.00043457,30]
[314019847,1707923598160,-1709.0,0.0004346,2]
[314019848,1707923598172,-152.0,0.0004346,5]
[314019849,1707923598182,-152.74044294,0.0004347,2]
[314019850,1707923598192,-380.89741926,0.00043481,32]
[314019851,1707923598203,-1810.66621911,0.00043481,30]
[314019852,1707923598214,-771.11029598,0.00043481,30]
[314019853,1707923598226,-411.42419244,0.00043481,60]
[314019854,1707923598236,-157.02522445,0.00043484,30]
[314019855,1707923598246,-190.84085951,0.00043485,4]
[314019856,1707923598256,-166.66666666,0.00043491,30]
[314019857,1707923598266,-150.0,0.00043498,30]
[314019858,1707923598277,-2645.0,0.00043498,39]
[314019859,1707923598287,-1000.0,0.00043499,120]
[314019860,1707923598297,-1011.26674361,0.000435,10]
[314019861,1707923598307,-2336.0,0.000435,30]
[314019862,1707923598316,-447.0,0.000435,2]
[314019863,1707923598326,-10000.0,0.000435,5]
[314019864,1707923598336,-300.0,0.000435,42]
[314019865,1707923598347,-109164.0,0.000435,30]
[314019866,1707923598357,-251.40554867,0.000435,30]
[314019867,1707923598367,-500.0,0.000435,30]
[314019868,1707923598377,-2110.0,0.000435,15]
[314019869,1707923598387,-239.29468176,0.00043506,30]
[314019870,1707923598397,-657.90689477,0.00043527,30]
[314019871,1707923598407,-150.0,0.00043542,2]
[314019872,1707923598417,-150.0,0.00043542,2]
[314019873,1707923598427,-150.0,0.00043542,2]
[314019874,1707923598438,-800.0,0.0004356,30]
[314019875,1707923598448,-154.66461653,0.00043596,30]
[314019876,1707923598458,-2833.0,0.00043598,2]
[314019877,1707923598468,-1368.0,0.00043598,2]
[314019878,1707923598482,-397.0,0.00043598,2]
[314019879,1707923598493,-154.65466196,0.00043599,30]
[314019880,1707923598503,-154.66461653,0.00043599,30]
[314019881,1707923598734,-154.65466196,0.0004362,30]
[314019882,1707923598745,-358.85958455,0.00043624,30]
[314019883,1707923598757,-153.271908,0.00043626,30]
[314019884,1707923598767,-154.65466197,0.00043636,30]
[314019885,1707923598777,-235.13880512,0.0004364,30]
[314019886,1707923598787,-354.81402348,0.00043644,30]
[314019887,1707923598797,-151.0214,0.00043648,22]
[314019888,1707923598807,-166.6666667,0.00043649,30]
[314019889,1707923598816,-120592.16159098,0.0004365,120]
[314019890,1707923598842,-2752.8235977,0.0004365,120]
[314019891,1707923598854,-1442.71090591,0.0004365,120]
[314019892,1707923598870,-990.0696306,0.00041917,7]
[314019893,1707923598883,-698.9503694,0.00041917,7]
[314019894,1707923598893,-4209.95329631,0.0004365,120]
[314019895,1707923599682,-165.65803862,0.000289,2]
[314019896,1707923599693,-152.94099915,0.000339,2]
[314019897,1707923599702,-152.94099915,0.000339,2]
[314019898,1707923599712,-152.94099915,0.000339,2]
[314019899,1707923599721,-152.94099915,0.000339,2]
[314019900,1707923599733,-19683.73179538,0.0003479,2]
[314019901,1707923599742,-1215.84398482,0.000349,2]
[314019902,1707923599752,-500.0,0.00036712,2]
[314019903,1707923599762,-500.0,0.00036712,2]
[314019904,1707923599771,-500.0,0.00036712,2]
[314019905,1707923599781,-500.0,0.00036986,2]
[314019906,1707923599791,-500.0,0.00036986,2]
[314019907,1707923599800,-500.0,0.00036986,2]
[314019908,1707923599810,-500.0,0.0003726,2]
[314019909,1707923599819,-620.05214362,0.0003726,2]
[314019910,1707923599829,-500.0,0.0003726,2]
[314019911,1707923599839,-500.0,0.00037534,2]
[314019912,1707923599848,-500.0,0.00037534,2]
[314019913,1707923599858,-343.47224967,0.00037808,2]
[314019914,1707923599867,-2388.53,0.00038356,7]
[314019915,1707923599877,-153.353113,0.00038356,7]
[314019916,1707923599887,-826.85,0.0003863,7]
[314019917,1707923599897,-2388.53,0.0003863,7]
[314019918,1707923599906,-826.85,0.00038904,7]
[314019919,1707923599917,-2388.53,0.00038904,7]
[314019920,1707923599928,-826.85,0.00039178,7]
[314019921,1707923599937,-2388.53,0.00039178,7]
[314019922,1707923599947,-826.85,0.00039452,7]
[314019923,1707923599957,-2388.53,0.00039452,7]
[314019924,1707923599968,-826.85,0.00039726,7]
[314019925,1707923599979,-2388.53,0.00039726,7]
[314019926,1707923599989,-826.85,0.0004,7]
[314019927,1707923599999,-2388.53,0.0004,7]
[314019928,1707923600012,-826.85,0.00040273,7]
[314019929,1707923600022,-1593.58307828,0.00040273,7]
[314019930,1707923600035,-794.94692172,0.00040273,7]
[314019931,1707923600045,-665.90222635,0.00040547,7]
[314019932,1707923600057,-160.94777365,0.00040547,7]
[314019933,1707923600066,-417.63550806,0.00040547,7]
[314019934,1707923600154,-568.30461105,0.00040547,7]
[314019935,1707923600214,-1402.58988089,0.00040547,7]
[314019936,1707923600223,-1689.02,0.00042191,7]
[314019937,1707923600234,-1061.69011911,0.00042465,7]
[314019938,1707923600462,-627.32988089,0.00042465,7]
[314019939,1707923600472,-1689.02,0.00042739,7]
[314019940,1707923600484,-1689.18651107,0.00043013,7]
[314019941,1707923600494,-31830.25918774,0.0004365,120]
[314019942,1707923600503,-354.81402366,0.00043652,30]
[314019943,1707923600514,-154.03006511,0.00043662,30]
[314019944,1707923600524,-1000.0,0.00043677,2]
[314019945,1707923600534,-157.35051859,0.00043697,30]
[314019946,1707923600546,-154.03006523,0.00043698,30]
[314019947,1707923600557,-4149.27387143,0.000437,120]
[314019948,1707923600569,-9657.5395758,0.000437,5]
[314019949,1707923600580,-159.695535,0.00043725,30]
[314019950,1707923600590,-151.196457,0.00043725,30]
[314019951,1707923600601,-8375.71540728,0.00043735,10]
[314019952,1707923600612,-153.271908,0.00043735,30]
[314019953,1707923600622,-1532.39,0.00043735,7]
[314019954,1707923600632,-631.18,0.00043735,7]
[314019955,1707923600642,-996.19,0.00043735,7]
[314019956,1707923600651,-1222.41,0.00043735,7]
[314019957,1707923600661,-1120.06,0.00043735,7]
[314019958,1707923600671,-5000.0,0.00043746,20]
[314019959,1707923600681,-151.0214,0.00043748,22]
[314019960,1707923600690,-10000.64176,0.00043752,15]
[314019961,1707923600700,-90080.33856018,0.0004376,30]
[314019962,1707923600737,-2479.43855427,0.0004376,30]
[314019963,1707923600762,-325.71352696,0.00037808,2]
[314019964,1707923600772,-2388.53,0.00040821,7]
[314019965,1707923600781,-4952.89471333,0.0004376,30]
[314019966,1707923601076,-59605.58992796,0.0004376,30]
[314019967,1707923601178,-50291.92827487,0.0004376,30]
[314019968,1707923601195,-264.64758707,0.0004376,30]
[314019969,1707923601209,-28416.15438232,0.0004376,30]
[314019970,1707923601219,-358.85958458,0.00043768,30]
[314019971,1707923601230,-300.0,0.0004377,3]
[314019972,1707923601240,-151.44662469,0.00043789,30]
[314019973,1707923601249,-3505.790134,0.00043798,30]
[314019974,1707923601258,-1263.477266,0.00043798,30]
[314019975,1707923601268,-1684.636356,0.00043798,30]
[314019976,1707923601277,-5053.909068,0.00043798,30]
[314019977,1707923601286,-1000.0,0.00043799,120]
[314019978,1707923601295,-30000.0,0.000438,10]
[314019979,1707923601305,-1006.39547367,0.000438,4]
[314019980,1707923601314,-10000.0,0.000438,5]
[314019981,1707923601323,-300.0,0.000438,56]
[314019982,1707923601333,-1000.0,0.000438,49]
[314019983,1707923601342,-2000.0,0.000438,2]
[314019984,1707923601351,-657.90689484,0.00043815,30]
[314019985,1707923601362,-166.6944464,0.00043833,30]
[314019986,1707923601372,-105608.34134658,0.00043834,5]
[314019987,1707923601382,-500.0,0.00043835,11]
[314019988,1707923601391,-500.0,0.00043835,11]
[314019989,1707923601401,-500.0,0.00043835,11]
[314019990,1707923601410,-500.0,0.00043835,11]
[314019991,1707923601419,-500.0,0.00043835,11]
[314019992,1707923601429,-500.0,0.00043835,11]
[314019993,1707923601438,-500.0,0.00043835,120]
[314019994,1707923601448,-197.18562305,0.00043835,30]
[314019995,1707923601457,-280.64023693,0.00043835,30]
[314019996,1707923601466,-226.42063893,0.00043835,30]
[314019997,1707923601475,-272.00263243,0.00043835,30]
[314019998,1707923601489,-193.13769394,0.00043835,30]
[314019999,1707923601498,-179.83507406,0.00043835,30]
[314020000,1707923601508,-1250.0,0.00043835,3]
[314020001,1707923601517,-3000.0,0.00043835,120]
[314020002,1707923601526,-4314.42,0.00043835,20]
[314020003,1707923601536,-4314.42,0.00043835,20]
[314020004,1707923601546,-4314.42,0.00043835,20]
[314020005,1707923601556,-4314.42,0.00043835,20]
[314020006,1707923601565,-4314.42,0.00043835,20]
[314020007,1707923601575,-4314.42,0.00043835,20]
[314020008,1707923601585,-867.83987218,0.00043835,20]
[314020009,1707923612246,-891.48243708,0.00022432,2]
[314020010,1707923612268,-1102.30328697,0.00022432,2]
[314020011,1707923619422,436.19062659,0.00022431,2]
[314020013,1707923652222,19071.09893324,0.00022431,2]
[314020014,1707923652648,6116.39762377,0.00022431,2]
[314020015,1707923664395,150.0,0.000224,2]
[314020016,1707923668123,2878.24980106,0.00022431,2]
[314020017,1707923668657,3461.96705255,0.00022431,2]
[314020018,1707923884228,909.75778928,0.00022431,2]
[314020019,1707923886526,500.0,0.00022431,2]
[314020020,1707923892890,870.44081465,0.00022431,2]
[314020021,1707923900503,-436.19062659,0.00024998,2]
[314020022,1707923900524,-2605.00836615,0.00024999,2]
[314020023,1707923900545,-4958.80100726,0.00024999,2]
[314020024,1707923901021,877.32658731,0.00020412,2]
[314020025,1707923902485,458.57077155,0.00022431,2]
[314020026,1707923919119,877.32658731,0.00020412,2]
[314020027,1707923938999,879.11160878,0.00020412,2]
[314020030,1707923973872,-41.42922845,0.00022431,2]
[314020031,1707923973897,-19252.21979484,0.00024997,2]
[314020032,1707923973922,-6706.35097671,0.00024998,2]
[314020033,1707924107408,-13900.0,0.00024998,2]
[314020034,1707924148645,-29402.80546773,0.00024998,2]
[314020035,1707924148666,-436.19062659,0.00024998,2]
[314020036,1707924148686,-7135.93629303,0.00024999,2]
[314020037,1707924148707,-25.06761265,0.00025,2]
[314020039,1707924157040,3213.3537895,0.00024998,7]
[314020040,1707924175014,3213.3537895,0.00024998,7]
[314020041,1707924191117,3213.3537895,0.00024998,7]
[314020042,1707924206993,3213.3537895,0.00024998,7]
[314020043,1707924214874,9143.84251864,0.00024999,7]
[314020045,1707924230998,2313.147239,0.00024998,7]
[314020046,1707924277693,3884.96502599,0.00018753,2]
[314020047,1707924296071,115.03497401,0.00018753,2]
[314020048,1707924296092,248.02663408,0.00018753,2]
[314020049,1707924298903,285.79621977,0.00018753,2]
[314020050,1707924300124,861.35451568,0.00018753,2]
[314020051,1707924302540,155.0,0.00018753,2]
[314020052,1707924302811,155.0,0.00018753,2]
[314020053,1707924303022,877.32658731,0.00017065,2]
[314020054,1707924303348,870.44081465,0.00018753,2]
[314020055,1707924303964,268.16092729,0.00018753,2]
[314020056,1707924304483,155.0,0.00018753,2]
[314020057,1707924305908,123.89430122,0.0002,2]
[314020058,1707924305929,2390.01429433,0.0002,2]
[314020059,1707924306542,236.12744989,0.00018753,2]
[314020060,1707924306946,155.0,0.00018753,2]
[314020061,1707924307942,155.0,0.00018753,2]
[314020062,1707924308278,1063.85825578,0.00018752,2]
[314020063,1707924308300,2080.02272292,0.00018752,2]
[314020064,1707924308329,155.0,0.00018753,2]
[314020065,1707924309180,888.99872679,0.00018753,2]
[314020066,1707924309371,404.28997083,0.0001819,2]
[314020067,1707924310103,471.68857946,0.00018753,5]
[314020068,1707924310122,812.72089554,0.00018753,5]
[314020069,1707924310157,157.61416329,0.00018753,2]
[314020070,1707924310454,155.0,0.00018753,2]
[314020071,1707924314066,363.06160809,0.00018753,2]
[314020072,1707924314120,861.35451568,0.00018753,2]
[314020073,1707924315506,155.0,0.00018753,2]
[314020074,1707924317003,285.79621977,0.00018753,2]
[314020075,1707924318490,155.0,0.00018753,2]
[314020076,1707924318554,179.29999533,0.00018753,2]
[314020077,1707924319045,212.21855877,0.00017065,2]
[314020078,1707924319348,662.93404353,0.00018753,2]
[314020079,1707924319370,207.50677112,0.00018753,2]
[314020080,1707924319965,268.16092729,0.00018753,2]
[314020081,1707924320813,156.23691688,0.00018753,2]
[314020082,1707924322682,236.12744989,0.00018753,2]
[314020083,1707924322949,155.0,0.00018753,2]
[314020084,1707924323372,404.28997083,0.0001819,2]
[314020085,1707924325131,422.26327954,0.00018752,2]
[314020086,1707924326076,155.0,0.00018753,2]
[314020087,1707924326433,157.61416329,0.00018753,2]
[314020088,1707924327171,888.99872679,0.00018753,2]
[314020089,1707924327808,843.75644894,0.00018753,5]
[314020090,1707924328322,105.04534543,0.00018753,2]
[314020091,1707924328343,49.95465457,0.00018753,2]
[314020092,1707924328417,156.2449723,0.00018753,2]
[314020093,1707924332061,363.06160809,0.00018753,2]
[314020094,1707924332122,861.35451568,0.00018753,2]
[314020095,1707924332278,1047.35508417,0.00018752,2]
[314020096,1707924332892,632.53888103,0.00018752,2]
[314020097,1707924333486,155.0,0.00018753,2]
[314020098,1707924334261,734.49028416,0.00018752,2]
[314020099,1707924334281,1585.57550613,0.00018752,2]
[314020100,1707924334526,184.05869594,0.00022249,30]
[314020101,1707924335964,268.16092729,0.00018753,2]
[314020102,1707924336928,285.79621977,0.00018753,2]
[314020103,1707924338488,172.75895799,0.00018753,2]
[314020104,1707924338945,156.7537296,0.00018753,2]
[314020105,1707924339208,1530.95465922,0.00018753,2]
[314020106,1707924339227,3687.64281391,0.00018753,2]
[314020107,1707924339351,312.35718609,0.00018753,2]
[314020108,1707924339373,404.51854419,0.00018753,2]
[314020109,1707924343215,888.99872679,0.00018753,2]
[314020110,1707924343350,404.28997083,0.0001819,2]
[314020111,1707924343937,306.92975399,0.00018753,2]
[314020112,1707924346545,317.90674525,0.00018753,2]
[314020113,1707924346679,1677.35625895,0.00022136,2]
[314020114,1707924346698,3860.42177605,0.00022136,2]
[314020115,1707924349023,139.57822395,0.00016712,2]
[314020116,1707924349044,37.28177605,0.00016712,2]
[314020117,1707924350079,363.06160809,0.00018753,2]
[314020118,1707924350323,155.0,0.00018753,2]
[314020119,1707924352009,402.83821741,0.00018752,2]
[314020120,1707924352126,606.62198718,0.00018753,2]
[314020121,1707924352193,157.61416329,0.00018753,2]
[314020122,1707924352507,184.05869594,0.00025004,30]
[314020123,1707924353059,285.79621977,0.00018753,2]
[314020124,1707924355185,1014.07357804,0.00018753,2]
[314020125,1707924355487,155.0,0.00018753,2]
[314020126,1707924355964,246.6569515,0.00018753,2]
[314020127,1707924361350,404.28997083,0.0001819,2]
[314020129,1707924363180,171.76552784,0.00018753,2]
[314020130,1707924363198,223.26127096,0.00018753,2]
[314020131,1707924366075,479.95292223,0.00018753,2]
[314020132,1707924366334,257.61625006,0.00018753,2]
[314020133,1707924368927,417.99634444,0.00018753,2]
[314020134,1707924370228,274.22858487,0.00018753,2]
[314020135,1707924370527,184.05869594,0.00025004,30]
[314020136,1707924381358,404.28997083,0.0001819,2]
[314020138,1707924388521,184.05869594,0.00025004,30]
[314020139,1707924401358,521.46048364,0.0001819,2]
[314020140,1707924404634,184.05869594,0.00024998,30]
[314020141,1707924418155,-176.01730117,0.00022241,2]